Cogmind - Beta 16.1 @@@ ROGUE MODE // 2026.02.26 @ 09:32:30 Player: Clong Result: Destroyed self with Grenade Launcher Performance ------------- Evolutions (1) 500 Regions Visited (3) 600 Robots Destroyed (35) 175 Value Destroyed (755) 755 Prototype IDs (0) 0 Alien Tech Used (0) 0 Bonus (0) 0 TOTAL SCORE: 2030 Bonus ------- None Cogmind --------- Core Integrity 0/400 Matter 124/300 Energy 160/160 System Corruption 2% Temperature Cool (6) Movement Walking (190) Ox1 Location -9/Materials Parts ------- > --- POWER (1) -------- Light Nuclear Core > --- PROPULSION (2) --- Aluminum Leg Aluminum Leg > --- UTILITY (2) ------ Improved Heat Sink Small Storage Unit > --- WEAPON (4) ------- Grenade Launcher Grenade Launcher Grenade Launcher Grenade Launcher > --- INVENTORY (8) ---- Ion Engine High-powered Shotgun High-powered Shotgun Grenade Launcher Peak State ------------ > --- POWER ------------ Ion Engine > --- PROPULSION ------- Light Treads Light Treads > --- UTILITY ---------- Small Storage Unit Shield Generator > --- WEAPON ----------- High-powered Shotgun High-powered Shotgun Grenade Launcher Grenade Launcher > --- INVENTORY -------- High-powered Shotgun High-powered Shotgun Grenade Launcher Grenade Launcher Grenade Launcher Grenade Launcher Grenade Launcher Grenade Launcher [Rating: 15] Favorites ----------- Power Ion Engine Engine Ion Engine Power Core Light Nuclear Core Propulsion Light Treads Treads Light Treads Leg Aluminum Leg Utility Small Storage Unit Device Shield Generator Storage Small Storage Unit Weapon Grenade Launcher Ballistic Gun Assault Rifle Launcher Grenade Launcher Build | -11 -10 -10 -9 ------- Run | Yrd Mat Min Mat Slots Evolved 2 | . . . 2 Power . | . . . . Propulsion . | . . . . Utility . | . . . . Weapon 2 | . . . 2 Parts Attached 22 | 6 4 . 12 Power 2 | 1 . . 1 Engine 1 | 1 . . . Core 1 | . . . 1 Reactor . | . . . . Propulsion 4 | 2 . . 2 Treads 2 | 2 . . . Leg 2 | . . . 2 Wheel . | . . . . Hover . | . . . . Flight . | . . . . Utility 4 | 1 2 . 1 Device 3 | . 2 . 1 Storage 1 | 1 . . . Processor . | . . . . Hackware . | . . . . Protection . | . . . . Artifact . | . . . . Weapon 12 | 2 2 . 8 Energy Gun . | . . . . Energy Cannon . | . . . . Ballistic Gun 4 | 2 . . 2 Ballistic Cannon . | . . . . Launcher 8 | . 2 . 6 Special Weapon . | . . . . Impact Weapon . | . . . . Slashing Weapon . | . . . . Piercing Weapon . | . . . . Special Melee Weapon . | . . . . Unidentified Prototypes . | . . . . Parts Lost 8 | . . . 8 Power 1 | . . . 1 Propulsion 2 | . . . 2 Utility 1 | . . . 1 Weapon 4 | . . . 4 Highest Loss Streak 5 | . . . 5 To Critical Strikes . | . . . . Average Backups 6 | 5 6 6 6 Power . | . . . . Propulsion 2 | 3 2 . . Utility . | . . . . Weapon 2 | . 2 6 5 Tool/Special . | . . . . Unused Backups 9 | . 6 . 3 Power 2 | . 1 . 1 Propulsion 4 | . 4 . . Utility . | . . . . Weapon 3 | . 1 . 2 Tool/Special . | . . . . Average Slot Usage (%) 87 | . 95 100 78 Engine 9 | . 14 14 4 Treads 19 | . 28 28 11 Device 9 | . 9 14 8 Storage 12 | . 14 14 11 Ballistic Gun 8 | . 12 . 7 Launcher 25 | . 15 28 32 Peak Build Rating 15 | 6 8 8 15 Average Rating 7 | 5 7 8 10 On Entrance 5 | . 6 8 8 Avg Prop Armor Cover (%) . | . . . . Naked Turns . | . . . . Heaviest Build 24 | 13 18 18 24 Greatest Support 40 | 40 40 40 40 Greatest Overweight (x) 6 | 4 . . 6 Average Overweight (x) . | . . . . Largest Inventory Capacity 8 | 8 8 8 8 Average Capacity 7 | 7 8 8 8 Most Carried 8 | 8 8 6 8 Average Carried 6 | 5 6 6 6 Final Capacity 8 | 8 8 8 8 Final Carried 6 | 6 6 6 4 Class Distribution -------------------- 72% | Mutant 17% | Bomber 6% | Tank 3% | Scavenger-Bomber Dominant Class ---------------- Mutant | -10/Materials Mutant | -10/Mines Bomber | -9/Materials Resources | -11 -10 -10 -9 ----------- Run | Yrd Mat Min Mat Matter Collected 406 | 219 30 4 153 Remotely . | . . . . Salvage Created 609 | . 172 4 433 Parts 47 | . 17 . 30 Haulers Intercepted . | . . . . Recyclers Shooed . | . . . . Parts Field Recycled . | . . . . Retrieved Matter . | . . . . Parts Self-Destructed . | . . . . Prevented . | . . . . Parts Restored . | . . . . Kills | -11 -10 -10 -9 ------- Run | Yrd Mat Min Mat Combat Hostiles Destroyed 20 | . 8 . 12 Guns 2 | . 1 . 1 AOE 18 | . 7 . 11 Classes Destroyed 9 | . 4 . 5 Worker 7 | . 1 1 5 Builder 4 | . . . 4 Tunneler 1 | . . . 1 Recycler 1 | . . . 1 Watcher 2 | . 1 . 1 Swarmer 3 | . 3 . . Grunt 14 | . 5 . 9 Duelist 1 | . . . 1 Sentry 2 | . . . 2 Best Kill Streak 12 | . 3 1 12 Combat Bots Only 5 | . 3 . 5 Max Kills in Single Turn 5 | . 3 1 5 Gunslinging . | . . . . Exploded 3 | . 3 . 3 Melee . | . . . . Uniques/NPCs Destroyed . | . . . . Combat | -11 -10 -10 -9 -------- Run | Yrd Mat Min Mat Hostile Shots Fired 150 | . 24 . 126 Missed 36 | . 6 . 30 Hits 114 | . 18 . 96 Projectile 114 | . 18 . 96 Damage Taken 1522 | . 200 . 1322 Core 450 | . 49 . 401 Absorbed by Shields 190 | . 26 . 164 Core Remaining (%) 90 | 100 . 80 . Volleys Fired 18 | . 10 . 8 Largest 4 | . 2 . 4 Hottest 120 | . 60 . 120 Shots Fired 49 | . 20 . 29 Gun 13 | . 9 . 4 Cannon . | . . . . Launcher 36 | . 11 . 25 Special . | . . . . Kinetic 13 | . 9 . 4 Thermal . | . . . . Explosive 36 | . 11 . 25 Electromagnetic . | . . . . Robot Hit Streak 9 | . 8 . 9 Robot Miss Streak 2 | . 2 . 1 Penetration Max . | . . . . Secondary Targets . | . . . . Shots Hit Robots 22 | . 14 . 8 Core Hits 61 | 1 18 1 41 Critical Kills . | . . . . Critical Parts Destroyed . | . . . . Critical Strikes . | . . . . Melee Attacks . | . . . . Impact . | . . . . Slashing . | . . . . Piercing . | . . . . Sneak Attacks . | . . . . Combat Hostiles . | . . . . Follow-up Attacks . | . . . . Damage Inflicted 1973 | 2 531 3 1437 Guns 142 | . 85 . 57 Cannons . | . . . . Explosions 1719 | . 442 . 1277 Melee . | . . . . Ramming 112 | 2 4 3 103 Kinetic 142 | . 85 . 57 Thermal . | . . . . Explosive 1719 | . 442 . 1277 Electromagnetic . | . . . . Impact . | . . . . Slashing . | . . . . Piercing . | . . . . Highest Corruption 2 | . . . 2 Average Corruption 2 | . . . 2 Corruption Purged . | . . . . Corruption Blocked . | . . . . Effects 2 | . . . 2 Matter Fused 1 | . . . 1 Heat Flow Errors 1 | . . . 1 Overload Shots . | . . . . Overflow Damage 14 | . . . 14 Projectiles . | . . . . Explosions 14 | . . . 14 Melee . | . . . . Knockbacks 2 | . . . 2 Impact 2 | . . . 2 Kinetic . | . . . . Secondary . | . . . . Self-Inflicted Damage 264 | . 30 . 234 Shots 9 | . 3 . 6 Rammed 58 | 3 3 . 52 Targets Rammed 60 | 3 3 1 53 Kicked . | . . . . Crushed 2 | . . 1 1 Highest Temperature 207 | . 4 . 207 Average Temperature 44 | . 2 . 51 Received Heat Transfer 642 | . 74 . 568 Siege Activations . | . . . . Martial Activations . | . . . . Shielding Activations . | . . . . Robots Disrupted . | . . . . Combat Hostiles . | . . . . Robots Corrupted . | . . . . Combat Hostiles . | . . . . Parts Fried . | . . . . Impact Corruptions . | . . . . Robots Melted . | . . . . Combat Hostiles . | . . . . Parts Melted . | . . . . Heat Transferred . | . . . . Parts Sabotaged . | . . . . Parts Stolen . | . . . . Parts Stripped . | . . . . Power Chain Reactions . | . . . . Alert | -11 -10 -10 -9 ------- Run | Yrd Mat Min Mat Maximum Alert Level 1 | . . . 1 Low Security (%) 99 | 100 100 100 97 Level 1 . | . . . 2 Level 2 . | . . . . Level 3 . | . . . . Level 4 . | . . . . Level 5 . | . . . . High Security . | . . . . Max Security . | . . . . Peak Influence 209 | . 160 46 209 Initial 46 | . . 46 7 Average 35 | . 77 33 55 Influence Increases 805 | . 280 5 520 Destroy 0b10 Robot/C 400 | . 160 . 240 Destroy 0b10 Robot/NC 75 | . 10 5 60 Destroy Leader 84 | . 32 . 52 Disable Machine 60 | . 45 . 15 Destroy Structure 171 | . 33 . 138 Lose Combat Pursuer 15 | . . . 15 Influence Decreases 535 | . 160 104 271 Entered New Map 88 | . . 74 14 Time Decay 367 | . 160 30 177 Lost Part 80 | . . . 80 Squads Dispatched 4 | . 2 . 2 Investigation 1 | . 1 . . Extermination . | . . . . Reinforcement 3 | . 1 . 2 Assault . | . . . . Garrison . | . . . . Intercept . | . . . . Searches Triggered . | . . . . Construction Impeded 1 | . . . 1 Haulers Reinforced . | . . . . Active Scanning Responses . | . . . . Cargo Convoy Interrupts . | . . . . Stealth | -11 -10 -10 -9 --------- Run | Yrd Mat Min Mat Distress Signals 2 | . . . 2 Communications Jammed . | . . . . Distress Signals . | . . . . Times Spotted 33 | . 11 . 22 Peak Tracking Total 6 | . 4 . 6 Tactical Retreats 1 | . . . 1 Traps | -11 -10 -10 -9 ------- Run | Yrd Mat Min Mat Traps Triggered 1 | . 1 . . Indirectly . | . . . . Trap Hack Attempts . | . . . . Triggered . | . . . . Disarmed . | . . . . Reprogrammed . | . . . . Reused . | . . . . Traps Extracted . | . . . . Installed . | . . . . Triggered . | . . . . Machines | -11 -10 -10 -9 ---------- Run | Yrd Mat Min Mat Machines Disabled 4 | . 3 . 1 Max in Single Turn 2 | . 2 . 1 Machines Repaired . | . . . . Machines Dismantled . | . . . . Machines Sabotaged . | . . . . Overloaded Fab Kills . | . . . . Hacking | -11 -10 -10 -9 --------- Run | Yrd Mat Min Mat Machines Accessed . | . . . . Terminals . | . . . . Fabricators . | . . . . Repair Stations . | . . . . Recycling Units . | . . . . Scanalyzers . | . . . . Garrison Access . | . . . . Total Hacks . | . . . . Successful . | . . . . Failed . | . . . . Catastrophic . | . . . . Database Lockouts . | . . . . Manual . | . . . . Terminals . | . . . . Fabricators . | . . . . Repair Stations . | . . . . Recycling Units . | . . . . Scanalyzers . | . . . . Garrison Access . | . . . . Terminal Hacks . | . . . . Fabricator Hacks . | . . . . Repair Station Hacks . | . . . . Recycling Unit Hacks . | . . . . Scanalyzer . | . . . . Garrison Access Hacks . | . . . . Unauthorized Hacks . | . . . . Terminals . | . . . . Fabricators . | . . . . Repair Stations . | . . . . Recycling Units . | . . . . Scanalyzers . | . . . . Garrison Access . | . . . . Data Cores Recovered . | . . . . Used . | . . . . Hacking Detections . | . . . . Full Trace Events . | . . . . Feedback Events . | . . . . Feedback Blocked . | . . . . Robot Schematics Acquired . | . . . . Robots Built . | . . . . Authchips . | . . . . Time . | . . . . Total Robot Build Rating . | . . . . Part Schematics Acquired . | . . . . Parts Built . | . . . . Authchips . | . . . . Time . | . . . . Total Part Build Rating . | . . . . Part Studies Acquired . | . . . . Parts Repaired . | . . . . Time . | . . . . Parts Recycled . | . . . . Recycled Matter . | . . . . Retrieved Matter . | . . . . Retrieved Components . | . . . . Parts Scanalyzed . | . . . . Part Schematics Acquired . | . . . . Parts Damaged . | . . . . Bothacking | -11 -10 -10 -9 ------------ Run | Yrd Mat Min Mat Used RIF Installer . | . . . . Robots Hacked . | . . . . Non-combat . | . . . . Combat . | . . . . Robot Hacks Applied . | . . . . Relay Couplers Released . | . . . . Fabnet Peak Effective % . | . . . . Robots Rewired . | . . . . Allies Hacked . | . . . . Hacks Repelled . | . . . . Allies | -11 -10 -10 -9 -------- Run | Yrd Mat Min Mat Total Allies . | . . . . Largest Group . | . . . . Highest-Rated Group . | . . . . Highest-Rated Ally . | . . . . Total Orders . | . . . . Ally Attacks . | . . . . Total Damage . | . . . . Kills . | . . . . Allies Corrupted . | . . . . Allies Melted . | . . . . Intel | -11 -10 -10 -9 ------- Run | Yrd Mat Min Mat Active Infowar (turns) 152 | . 152 . . Terrain 152 | . 152 . . Robot Analysis Total . | . . . . Derelict Logs Recovered 2 | . . 2 . Drone Launches . | . . . . Drone Recoveries . | . . . . Exploration | -11 -10 -10 -9 ------------- Run | Yrd Mat Min Mat Turns Passed 1696 | 737 388 76 495 Spaces Moved 655 | 207 209 47 192 Core 60 | 28 . . 32 Treads 577 | 179 209 47 142 Legs 18 | . . . 18 Wheels . | . . . . Hover . | . . . . Flight . | . . . . Fastest Speed 50 | 50 160 160 100 Average Speed 168 | 162 160 160 187 Slowest Speed 350 | 250 160 160 350 Overloaded Moves . | . . . . Propulsion Burnouts . | . . . . Robots Hopped . | . . . . Potential Cave-ins . | . . . . Cave-ins Triggered . | . . . . Exploration Rate (%) 23 | 13 50 9 20 Regions Visited 3 Branch Regions 1 Pre-discovered Areas . | . . . . Known Exits Taken . | . . . . Unknown Exits Taken 3 | 1 1 1 . Scrap Searched . | . . . . Spaces Dug . | . . . . Terrain Destroyed 188 | . 31 . 157 Melee . | . . . . Projectile . | . . . . AOE 188 | . 31 . 157 Terrain Rammed . | . . . . Walls Destroyed . | . . . . Machines Disabled . | . . . . Actions | -11 -10 -10 -9 --------- Run | Yrd Mat Min Mat Total 1172 | 606 244 47 275 Wait 379 | 379 . . . Move 652 | 206 208 46 192 Hop . | . . . . Pick Up 31 | 12 10 . 9 Fast Attach . | . . . . Attach 17 | 6 1 . 10 Detach . | . . . . Swap 5 | . 3 . 2 Drop 10 | . 9 . 1 Fire 18 | . 10 . 8 Melee . | . . . . Ram 47 | . . . 47 Kick . | . . . . Crush 13 | 3 3 1 6 Escape Stasis . | . . . . Rewire . | . . . . Trap . | . . . . Miscellaneous . | . . . . Route ------- -11/Scrapyard -10/Materials (discovered 2 exits: [*Min x2]) -10/Mines -9/Materials (discovered 1 exit: Mat) History --------- Turn | Location | Event 23 | -11/Scrapyard | Discovered new exit (range 16) 738 | -11/Scrapyard | Entered Materials 739 | -10/Materials | Build established: Mutant 816 | -10/Materials | Discovered new exit (range 8) 1092 | -10/Materials | Discovered new exit (range 16) 1126 | -10/Materials | Entered Mines 1178 | -10/Mines | Learned 2 Materials zone layouts 1179 | -10/Mines | Discovered new exit (range 9) 1202 | -10/Mines | Entered Materials 1202 | -9/Materials | Evolved 2 slots: Weapon x2 1203 | -9/Materials | Identified exit to Materials 1490 | -9/Materials | Lost 3 parts (1p2n) 1576 | -9/Materials | Core integrity fell below 50% 1588 | -9/Materials | Core integrity fell below 20% 1594 | -9/Materials | Lost 5 parts (1u4w) 1697 | -9/Materials | Destroyed self with Grenade Launcher Last Messages --------------- 01665_ R-06 Scavenger collects Particle Gun. 01669_ U-05 Engineer lays Concrete. 01678_ U-05 Engineer builds a Wall. 01679_ G-34 Mercenary destroyed. 01679_ K-01 Serf destroyed. 01679_ Destroyed Seismic Detector. 01679_ T-07 Excavator destroyed. 01679_ R-06 Scavenger destroyed. 01679_ U-05 Engineer destroyed. 01681_ K-01 Serf collects debris. 01683_ G-34 Mercenary destroyed. 01683_ L-31 Rogue destroyed. 01683_ K-01 Serf destroyed. 01683_ Destroyed Wheel. 01683_ K-01 Serf destroyed. 01687_ The unstable cave ceiling collapses. 01695_ R-06 Scavenger collects Aluminum Leg. 01696_ Acquired 19 matter. 01697_ G-34 Mercenary destroyed. 01697_ U-05 Engineer destroyed. Map ----- +----------------------------------------------------+ | # #?# ## ## #????????????????????????????? | | #+### ## ## #????????????????????????????? | | # ###+### #????????????????????????????? | | # #????????????????????????????? | | + #????????????????????????????? | | # #????????????????????????????? | | # #????????????????????????????? | | # #????????????????????????????? | | ##### """ #????????????????????????????? | | ##### """ ""T"" +????????????????????????????? | | # # """ """"" #????????????????????????????? | | # ?# #????????????????????????????? | | # # #????????????????????????????? | | # # ########+#####?????????????????????????? | | # # #??# #?????????????????????????? | | # # #??# #?????????????????????????? | | # #??# #########?????????????????? | | # #??# ## #?????????????????? | | #### ## !!! #?????????????????? | | + u ## !!! #?????????????????? | | ##### ## !!! ####??????????????? | | #### ##### #??????????????? | | ????# ###### # #??????????????? | | ????# ]]==### # ! # ????????? | | ????# ]]==###= [+ = r% ????????? | | ????######## # # @ #??????????????? | | ???????????### # #??????????????? | | ???????????# # # # ##??????????????? | | ???????????# ######### ## % #?###???????????????? | | ???????????### ### ##+###**!#???????????????????? | | ????????????# # = !|#???????????????????? | | ????????????##### [ #%##???????????????????? | | ????????????????# ]# #????????????????????? | | ????????????????# # #????????????????????? | | ????????????????########### #????????????????????? | | ????????????????????????????#????????????????????? | | ?????????????????????????????????????????????????? | | ?????????????????????????????????????????????????? | | ?????????????????????????????????????????????????? | | ?????????????????????????????????????????????????? | | ?????????????????????????????????????????????????? | | ?????????????????????????????????????????????????? | | ?????????????????????????????????????????????????? | | ?????????????????????????????????????????????????? | | ?????????????????????????????????????????????????? | | ?????????????????????????????????????????????????? | | ?????????????????????????????????????????????????? | | ?????????????????????????????????????????????????? | | ?????????????????????????????????????????????????? | | ?????????????????????????????????????????????????? | +----------------------------------------------------+ Best States ------------- Heat Dissipation 42 Energy Generation 14 Energy Capacity 250 Matter Stores 268 Matter Capacity 300 Sight Range 16 Terrain Scan Range 14 Terrain Scan Density 10 Evasion (%) 50 Recoil Reduction 2 Item Schematics ----------------- None Robot Schematics ------------------ None Fabricated ------------ Nothing Repaired ---------- Nothing Studied --------- None Alien Tech Used ----------------- None Achievements -------------- Hydra Challenges ------------ None Game ------ Seed LightpackDataMagmablaster Manual? 0 Play Time 00:10:09 Cumulative 4.0 hours Start 2026.02.26 @ 09:21:19 End 2026.02.26 @ 09:32:30 Sessions 1 Manual Loads 0 Difficulty Rogue Special Mode None Game No. 17 Rogue 17 Adventurer 0 Explorer 0 Win Type - Total 0 Types 0/0/0/0/0/0/0/0/0/0 Lore% 3 Gallery% 8 Achievement% 7 Wizard Run 0 Options --------- Layout 1 ASCII 0 Keyboard 0 Movement Arrows Keybinds 0 Fullscreen 1 Font 24/Smallcaps Map View 50x35 Zoom Use 0% Tactical HUD 1 Map Filters NONE Filters NONE Steam 1 RUN: 808cb074-139f-4e92-86eb-6104261b1013